bitfinex-derivatives/quotes_ETHF0:USTF0_20250918
["timestamp","ask_amount","ask_price","bid_price","bid_amount"]
[1758160659952,0.951,4623.3,4623.2,0.6926]
[1758160660153,0.6372,4623.3,4623.2,0.6926]
[1758160662664,0.4172,4623.3,4623.2,0.6926]
[1758160662853,3.5216,4624.3,4624.1,0.2891]
[1758160663055,4.1588,4624.3,4624.2,0.6805]
[1758160666657,4.1588,4624.3,4624.2,0.4823]
[1758160669768,4.1588,4624.3,4624.2,0.2891]
[1758160670451,4.1588,4624.3,4624.2,0.4823]
[1758160670659,3.4278,4624.3,4624.2,0.6805]
[1758160670853,4.1588,4624.3,4624.2,0.6805]
[1758160672265,4.1588,4624.3,4624.2,0.4823]
[1758160672464,0.4155,4624.0,4623.7,0.2891]
[1758160672666,3.9388,4623.8,4623.5,0.3057]
[1758160672870,0.731,4623.6,4623.5,0.3057]
[1758160673361,0.731,4623.6,4623.5,0.2891]
[1758160673762,0.731,4623.6,4623.5,0.4823]
[1758160673963,0.731,4623.6,4623.5,0.6805]
[1758160674469,0.731,4623.6,4623.5,0.8043]
[1758160675369,0.8447,4623.5,4623.4,0.75449515]
[1758160675964,0.4172,4623.3,4623.0,1.04359515]
[1758160676164,0.4172,4623.1,4623.0,0.94769515]
[1758160676365,0.731,4623.1,4623.0,1.43499515]
[1758160676569,0.731,4623.1,4623.0,1.55879515]
[1758160679176,0.4172,4623.1,4623.0,1.55879515]
[1758160682476,0.4172,4623.1,4623.0,0.8043]
[1758160682676,0.4172,4623.1,4623.0,1.55879515]
[1758160684486,0.7083,4623.1,4623.0,1.55879515]
[1758160684890,0.7083,4623.1,4622.9,3.2078]
[1758160685185,0.4238,4623.0,4622.9,0.4112]
[1758160685493,0.9151,4623.0,4622.9,0.6957]
[1758160687590,0.9151,4623.0,4622.9,1.45019515]
[1758160688289,0.22,4623.0,4622.9,1.45019515]
[1758160688887,0.4215,4623.0,4622.9,1.45019515]
[1758160689494,0.2015,4623.0,4622.9,1.45019515]
[1758160692396,0.2015,4623.0,4622.9,0.6957]
[1758160692695,0.6875,4623.0,4622.9,0.6957]
[1758160693296,0.6875,4623.0,4622.9,0.2845]
[1758160693598,0.3976,4622.7,4622.6,0.6888]
[1758160693998,0.2015,4622.7,4622.6,0.6888]
[1758160696394,1.44199515,4622.7,4622.6,0.6888]
[1758160696596,1.44199515,4622.7,4622.6,0.4942]
[1758160696893,4.64979515,4622.7,4622.4,0.3035]
[1758160697088,1.55119515,4622.5,4622.4,0.0166]
[1758160697495,1.55119515,4622.5,4622.0,0.1238]
[1758160697692,0.6875,4622.2,4622.1,0.6888]
[1758160704602,0.3976,4622.2,4622.1,0.6888]
[1758160706897,0.6875,4622.2,4622.1,0.6888]
[1758160707104,3.2078,4622.7,4622.1,0.6888]
[1758160707105,3.6992,4623.3,4623.2,0.4019]
[1758160707302,4.64979515,4623.3,4623.2,0.6888]
[1758160707603,5.08609515,4623.3,4623.2,0.6888]
[1758160707799,4.86979515,4623.3,4623.2,0.6888]
[1758160708406,5.6242903,4623.3,4622.6,0.2869]
[1758160708707,0.95599515,4622.7,4622.6,0.6888]
[1758160709804,1.61422264,4622.7,4622.6,0.6888]
[1758160710104,1.12822264,4622.8,4622.7,0.6888]
[1758160710606,0.2015,4622.8,4622.7,0.6888]
[1758160717905,0.7133,4622.8,4622.7,0.6888]
[1758160719106,1.64002264,4622.8,4622.7,0.6888]
[1758160719307,1.64002264,4622.8,4622.7,0.2869]
[1758160719512,2.14975218,4622.8,4622.7,0.2869]
[1758160720310,3.4278,4622.9,4622.7,0.6933]
[1758160720501,3.8198,4622.9,4622.8,0.707]
[1758160720813,4.1342,4622.9,4622.8,0.5086]
[1758160721808,4.88137322,4622.9,4622.8,0.3006]
[1758160722611,4.88137322,4622.9,4622.6,0.3006]
[1758160722913,1.63312264,4622.7,4622.6,0.3006]
[1758160723111,1.85312264,4622.7,4622.6,0.3006]
[1758160723310,2.04861657,4622.7,4622.5,0.4952]
[1758160723510,0.7064,4622.6,4622.5,0.4952]
[1758160724208,0.7064,4622.6,4621.6,0.5086]
[1758160724209,0.392,4621.7,4621.6,0.5086]
[1758160724408,1.85312264,4621.7,4621.1,0.3006]
[1758160724614,1.63312264,4621.3,4621.2,0.707]
[1758160725008,3.5998,4621.3,4621.2,0.707]
[1758160726813,3.9142,4621.3,4621.2,0.707]
[1758160729420,3.9142,4621.3,4621.2,0.5086]
[1758160732314,0.3144,4621.2,4620.7,0.3006]
[1758160732617,1.63312264,4620.8,4620.7,0.707]
[1758160732814,1.85312264,4620.8,4620.7,0.707]
[1758160733413,0.9264,4620.8,4620.7,0.707]
[1758160734919,0.9264,4620.8,4620.7,0.5086]
[1758160736320,0.9264,4620.8,4620.7,0.3006]
[1758160736519,0.3144,4620.7,4620.3,3.2078]
[1758160736714,0.7064,4620.5,4620.4,0.707]
[1758160738519,0.22,4620.8,4620.5,0.1245]
[1758160738721,0.4146,4620.8,4620.7,0.707]
[1758160738918,0.9264,4620.8,4620.7,0.707]
[1758160740218,0.9264,4620.8,4620.3,3.2078]
[1758160740521,0.3064,4620.7,4620.4,0.3036]
[1758160740718,0.7163,4620.5,4620.4,0.6951]
[1758160741523,0.4099,4620.5,4620.4,0.6951]
[1758160742420,0.2059,4620.5,4620.4,0.6951]
[1758160742621,0.5264,4620.8,4620.5,0.1227]
[1758160742925,0.7323,4620.8,4620.7,0.6951]
[1758160744021,0.7323,4620.8,4620.3,3.2078]
[1758160744022,0.1134,4620.5,4620.3,3.2078]
[1758160744224,0.4099,4620.0,4619.9,0.7962]
[1758160744427,0.4259,4620.0,4619.9,0.7962]
[1758160744636,0.4259,4620.0,4619.9,0.6951]
[1758160745428,0.2059,4620.0,4619.9,0.6951]
[1758160745930,1.86362264,4620.0,4619.9,0.6951]
[1758160746330,1.97702264,4620.0,4619.7,0.304]
[1758160746629,4.84942264,4619.8,4619.7,0.5027]
[1758160746829,4.84942264,4619.8,4619.7,0.7019]
[1758160748333,5.06942264,4619.8,4619.7,0.7019]
[1758160751023,3.9227,4619.8,4619.7,0.7019]
[1758160751231,3.2078,4620.3,4620.0,0.1232]
[1758160751419,3.4117,4620.3,4620.2,0.7019]
[1758160751619,4.1427,4620.3,4620.2,0.7019]
[1758160752021,4.1427,4620.3,4620.2,0.304]
[1758160752430,4.1427,4620.3,4620.2,0.5027]
[1758160752627,5.06942264,4620.3,4620.2,0.7019]
[1758160753632,5.06942264,4620.3,4619.6,0.304]
[1758160753929,1.33532264,4619.9,4619.8,0.1987]
[1758160754129,1.55532264,4619.9,4619.8,0.5027]
[1758160754518,1.86162264,4619.9,4619.8,0.7019]
[1758160756428,0.7149,4619.9,4619.5,0.0057]
[1758160756628,1.64162264,4619.6,4619.5,0.7076]
[1758160756931,1.64162264,4619.6,4619.5,0.8251]
[1758160758429,1.64162264,4619.6,4619.5,0.7019]
[1758160759623,0.22,4619.7,4619.5,0.7019]
[1758160759829,0.4239,4619.7,4619.6,0.7019]
[1758160760023,0.9349,4619.7,4619.6,0.7019]
[1758160760223,0.9349,4619.7,4619.6,0.5027]
[1758160762628,0.9349,4619.7,4619.6,0.7019]
[1758160762825,0.6286,4619.7,4619.6,0.7019]
[1758160763533,0.4239,4619.7,4619.6,0.7019]
[1758160764226,0.9349,4619.7,4619.6,0.7019]
[1758160764926,0.7149,4619.7,4619.6,0.7019]
[1758160765122,0.9349,4619.7,4619.6,0.7019]
[1758160765624,0.7149,4619.7,4619.6,0.7019]
[1758160765824,0.9349,4619.7,4619.6,0.7019]
[1758160766234,0.6286,4619.7,4619.6,0.7019]
[1758160766529,0.2039,4619.7,4619.6,0.7019]
[1758160766734,3.4117,4620.3,4620.2,0.7019]
[1758160767031,4.55842264,4620.3,4620.2,0.7019]
[1758160767534,4.76312264,4620.3,4620.2,0.7019]
[1758160768136,5.06942264,4620.3,4620.2,0.7019]
[1758160769433,4.1427,4620.3,4620.2,0.7019]
[1758160771128,3.9227,4620.3,4620.2,0.7019]
[1758160771329,4.1427,4620.3,4620.2,0.7019]
[1758160772331,0.9349,4620.3,4620.2,0.7019]
[1758160774633,0.9349,4620.3,4620.2,0.5027]
[1758160774829,0.9349,4620.3,4620.2,0.7019]
[1758160776229,0.4239,4620.3,4620.2,0.7019]
[1758160776835,3.2078,4620.8,4620.5,0.1174]
[1758160777143,3.2078,4620.8,4620.7,1.45926656]
[1758160777543,3.4084,4620.8,4620.7,1.45926656]
[1758160777739,3.2078,4621.3,4621.2,0.3897]
[1758160777941,3.2078,4621.3,4621.2,1.45926656]
[1758160778238,3.6118,4621.3,4621.2,0.7035]
[1758160778538,3.8977,4621.3,4621.2,0.7035]
[1758160778740,3.6118,4621.3,4621.2,0.7035]
[1758160779541,3.4084,4621.3,4621.2,1.45926656]
[1758160780237,3.4084,4621.3,4620.6,0.22]
[1758160780238,4.65346656,4621.3,4620.7,1.06956656]
[1758160780441,4.65346656,4621.3,4621.2,0.3138]
[1758160780842,4.65346656,4621.3,4621.2,0.513]
[1758160781043,3.8977,4621.3,4621.2,0.513]
[1758160782645,0.6899,4621.3,4621.2,0.7035]
[1758160783354,0.6899,4621.1,4621.0,0.3138]
[1758160783643,0.6899,4621.0,4620.9,0.3138]
[1758160784044,0.6899,4621.0,4620.9,0.513]
[1758160784837,0.6899,4621.0,4620.9,0.3138]
[1758160785142,0.8036,4621.0,4620.8,0.1731]
[1758160785445,1.44566656,4620.9,4620.8,0.4869]
[1758160785647,0.6899,4620.9,4620.8,0.4869]
[1758160786244,0.2006,4620.9,4620.8,1.63236656]
[1758160786445,0.4206,4621.1,4621.0,0.8209]
[1758160786646,0.4206,4621.1,4621.0,1.57666656]
[1758160787044,3.2078,4621.3,4621.0,1.26286656]
[1758160787346,3.2078,4621.3,4621.2,0.513]
[1758160787347,3.8977,4621.3,4621.2,0.513]
[1758160789044,3.8318,4621.3,4620.9,0.3138]
[1758160789346,1.55936656,4621.0,4620.8,0.1731]
[1758160789740,1.55936656,4621.0,4620.8,0.4869]
[1758160789944,0.6899,4620.9,4620.8,0.4869]
[1758160790950,0.6899,4620.9,4620.8,0.6861]
[1758160793045,0.6899,4620.9,4620.8,0.1731]
[1758160793954,4.6899,4620.9,4620.8,0.1731]
[1758160794254,4.90631,4620.9,4620.8,0.1731]
[1758160794845,4.6899,4620.9,4620.8,0.1731]
[1758160797650,5.44566656,4620.9,4620.8,0.1731]
[1758160797852,0.9099,4620.9,4620.8,0.8766]
[1758160798152,0.4206,4620.9,4620.8,0.8766]
[1758160798752,0.22,4620.9,4620.8,0.5628]
[1758160798950,3.2078,4621.3,4621.0,0.1156]
[1758160799151,3.2078,4621.3,4621.2,0.7107]
[1758160799351,3.6358,4621.3,4621.2,0.7107]
[1758160799948,0.9142,4621.3,4621.2,0.5078]
[1758160800354,0.428,4621.3,4621.2,0.7107]
[1758160800554,0.22,4621.3,4621.2,0.7107]
[1758160800748,3.2078,4621.8,4621.2,0.7107]
[1758160800749,3.2078,4621.8,4621.5,0.1156]
[1758160800950,3.2078,4621.8,4621.7,0.7107]
[1758160800951,3.8285,4621.8,4621.7,0.7107]
[1758160801155,4.122,4621.8,4621.7,0.3007]
[1758160801354,4.122,4621.8,4621.1,0.3007]
[1758160801555,0.75576656,4621.4,4621.1,0.3007]
[1758160801756,0.6942,4621.2,4621.1,0.5078]
[1758160802657,1.44996656,4621.2,4621.1,0.5078]
[1758160803554,0.6942,4621.2,4621.1,0.5078]
[1758160803753,0.6942,4621.2,4621.1,0.7107]
[1758160805653,0.208,4621.2,4621.1,0.7107]
[1758160805851,3.5105,4622.3,4621.7,0.3938]
[1758160806155,3.8155,4622.3,4622.2,1.46316656]
[1758160806555,3.8155,4622.3,4622.2,0.7074]
[1758160806752,0.3877,4621.9,4621.5,0.1144]
[1758160806948,0.3027,4621.4,4621.1,0.5127]
[1758160807153,0.1093,4621.5,4620.9,0.5127]
[1758160807154,0.6904,4621.0,4620.9,0.5127]
[1758160807355,1.44616656,4621.0,4620.9,0.3136]
[1758160807656,0.3027,4620.9,4620.8,0.4867]
[1758160807861,0.6904,4620.9,4620.8,0.4867]
[1758160808163,0.9104,4620.9,4620.8,0.1731]
[1758160808853,0.9104,4620.9,4620.8,0.6858]
[1758160809555,0.6904,4620.9,4620.8,0.6858]
[1758160809759,0.9104,4620.9,4620.8,0.8805]
[1758160810356,1.66616656,4620.9,4620.8,0.8805]
[1758160810958,1.66616656,4620.9,4620.8,0.7074]
[1758160811559,1.66616656,4620.9,4620.8,0.5127]
[1758160813657,1.66616656,4620.9,4620.8,0.7074]
[1758160814964,1.36346656,4620.9,4620.8,0.7074]
[1758160815165,0.6077,4620.9,4620.8,0.7074]
[1758160815369,0.9104,4620.9,4620.8,0.7074]
[1758160815565,3.2078,4621.2,4621.0,0.1144]
[1758160815761,3.2078,4621.2,4621.1,0.7074]
[1758160815957,0.75576656,4621.9,4621.1,0.7074]
[1758160815958,3.2078,4621.7,4621.5,0.1144]
[1758160816268,4.65396656,4621.7,4621.6,0.7074]
[1758160816467,4.65396656,4621.7,4621.6,0.5127]
[1758160817060,4.65396656,4621.7,4621.6,0.7074]
[1758160818066,4.87396656,4621.7,4621.6,0.7074]
[1758160818658,0.6904,4621.4,4621.0,0.1144]
[1758160818863,0.9104,4621.4,4621.1,0.3136]
[1758160819170,0.9104,4621.4,4620.6,0.1731]
[1758160819370,3.2078,4621.2,4620.7,0.3136]
[1758160819571,0.6904,4620.8,4620.7,0.5127]
[1758160819966,0.6904,4620.8,4620.7,0.7074]
[1758160828179,0.6904,4620.8,4620.6,0.1731]
[1758160828479,1.44616656,4620.7,4620.6,0.1731]
[1758160828977,1.44616656,4620.7,4620.6,0.4867]
[1758160829170,1.44616656,4620.7,4620.6,0.1731]
[1758160829365,8.65396656,4620.7,4620.6,0.1731]
[1758160830673,8.65396656,4620.7,4620.5,0.0216]
[1758160830674,9.16341726,4620.7,4620.5,0.0216]
[1758160830889,1.1619507,4620.6,4620.5,0.0216]
[1758160831378,5.1619507,4620.6,4620.5,0.0216]
[1758160831572,5.3819507,4620.6,4620.5,0.0216]
[1758160833087,4.8725,4620.6,4620.5,0.0216]
[1758160833581,4.6525,4620.6,4620.5,0.0216]
[1758160833887,5.80014943,4620.6,4620.5,0.0216]
[1758160836078,5.58014943,4620.6,4620.5,0.0216]
[1758160836374,5.80014943,4620.6,4620.5,0.0216]
[1758160837277,5.58014943,4620.6,4620.5,0.0216]
[1758160837472,5.80014943,4620.6,4620.5,0.0216]
[1758160839286,1.80014943,4620.6,4620.5,0.0216]
[1758160841885,1.80014943,4620.6,4620.2,0.313]
[1758160842083,0.6531,4620.1,4620.0,0.5007]
[1758160842280,3.8164,4620.1,4620.0,0.5007]
[1758160842684,3.8164,4620.1,4620.0,0.8137]
[1758160842890,4.0809,4620.1,4620.0,0.8137]
[1758160845895,4.0809,4620.1,4620.0,0.313]
[1758160847689,0.3886,4619.9,4619.8,0.3346]
[1758160847892,1.80074943,4619.9,4619.8,0.3346]
[1758160848488,1.80074943,4619.9,4619.8,0.5304]
[1758160849491,1.53624943,4619.9,4619.8,0.7209]
[1758160849991,1.80074943,4619.9,4619.8,0.7209]
[1758160850188,1.80074943,4619.9,4619.8,0.5304]
[1758160850989,1.80074943,4619.9,4619.8,0.3346]
[1758160851792,1.80074943,4619.9,4619.8,0.0216]
[1758160852088,6.31168606,4619.9,4619.2,0.313]
[1758160852288,4.52404943,4619.3,4619.2,0.313]
[1758160852488,5.00854943,4619.3,4619.2,0.313]
[1758160852689,5.00854943,4619.3,4619.2,0.5088]
[1758160854191,9.49958886,4619.3,4618.2,0.02165369]
[1758160854386,0.6531,4618.3,4618.2,0.02165369]
[1758160854686,0.8731,4618.3,4618.2,0.02165369]
[1758160854887,1.63178127,4618.3,4617.7,0.313]
[1758160855088,3.8609,4617.8,4617.7,0.313]
[1758160855294,4.0809,4617.8,4617.7,0.313]
[1758160855591,5.00854943,4617.8,4617.7,0.313]
[1758160856891,5.00854943,4617.8,4617.5,0.313]
[1758160857090,5.00854943,4617.8,4617.1,0.313]
[1758160857291,0.0415,4618.0,4616.8,0.4759]
[1758160857292,3.2078,4617.2,4616.8,0.4759]
[1758160857593,0.6531,4616.9,4616.8,0.2854]
[1758160857795,0.6086,4616.9,4616.8,0.7889]
[1758160858195,0.6086,4616.9,4616.8,0.6993]
[1758160858586,0.3886,4616.9,4616.8,0.6993]
[1758160858792,0.6086,4616.9,4616.8,0.6993]
[1758160859087,3.2078,4617.2,4617.0,0.1262]
[1758160859289,0.22,4617.1,4617.0,0.8335]
[1758160859802,0.4103,4617.1,4617.0,0.8335]
[1758160860399,0.1903,4617.1,4617.0,0.8335]
[1758160860795,0.4103,4617.1,4617.0,0.8335]
[1758160861495,0.1903,4617.1,4617.0,0.8335]
[1758160861701,0.4103,4617.1,4617.0,0.8335]
[1758160861900,0.1903,4617.1,4617.0,0.8335]
[1758160862200,0.6116,4617.1,4617.0,0.8335]
[1758160862705,0.1903,4617.1,4617.0,0.8335]
[1758160862996,0.4103,4617.1,4617.0,0.8335]
[1758160863401,3.2078,4617.2,4617.0,0.8335]
[1758160863604,3.2078,4617.7,4617.6,0.7073]
[1758160863903,3.4278,4617.7,4617.6,0.7073]
[1758160864602,0.4103,4617.7,4617.6,0.7073]
[1758160868809,4.0848,4617.7,4617.6,0.5071]
[1758160870095,4.0848,4617.7,4617.6,0.3084]
[1758160870296,4.0848,4617.7,4617.1,0.3009]
[1758160870499,1.57654943,4617.2,4617.1,0.4934]
[1758160870703,1.79654943,4617.2,4617.1,0.4934]
[1758160871301,5.00434943,4617.2,4617.1,0.4934]
[1758160871702,5.00434943,4617.2,4617.1,0.3009]
[1758160872806,3.2078,4617.2,4617.1,0.6867]
[1758160873204,3.4278,4617.2,4617.1,0.6867]
[1758160874510,3.6186,4617.2,4617.1,0.6867]
[1758160874711,0.4108,4617.2,4617.1,0.6867]
[1758160875410,0.6035,4617.2,4617.1,0.6867]
[1758160878503,3.8567,4617.2,4617.1,0.4934]
[1758160878708,4.73894943,4617.2,4617.1,0.6867]
[1758160879807,0.3835,4616.8,4616.7,1.1398]
[1758160880007,0.3835,4616.8,4616.7,1.3331]
[1758160880413,0.1908,4616.8,4616.7,1.634]
[1758160881308,0.1908,4616.8,4616.7,0.6867]
[1758160882409,0.4581,4616.6,4616.5,0.6129]
[1758160882714,1.57654943,4616.6,4616.5,0.6129]
[1758160882912,1.31114943,4616.6,4616.5,0.8062]
[1758160885612,1.53114943,4616.6,4616.5,0.8062]
[1758160889415,1.79654943,4616.6,4616.5,0.8062]
[1758160890110,1.57654943,4616.6,4616.5,0.8062]
[1758160890314,1.79654943,4616.6,4616.5,0.8062]
[1758160891316,1.53114943,4616.6,4616.5,0.8062]
[1758160891816,1.79654943,4616.6,4616.5,0.8062]
[1758160893715,1.62598227,4616.6,4616.5,0.8062]
[1758160894017,0.6035,4616.6,4616.5,0.8062]
[1758160894222,1.36058227,4616.6,4616.5,0.8062]
[1758160894418,1.62598227,4616.6,4616.5,0.8062]
[1758160895209,1.62598227,4616.6,4616.5,0.6129]
[1758160895415,0.8689,4616.6,4616.5,0.6129]
[1758160896620,0.8689,4616.6,4616.5,0.3009]
[1758160897023,0.8689,4616.6,4616.5,0.8204]
[1758160897321,0.8689,4616.6,4616.5,0.6223]
[1758160898822,0.6035,4616.6,4616.5,0.8204]
[1758160899018,0.6035,4616.6,4616.5,0.6223]
[1758160899227,0.6487,4616.6,4616.5,0.3009]
[1758160899424,1.62578227,4616.6,4616.5,0.3009]
[1758160899722,0.2652,4616.5,4616.1,0.7988]
[1758160899919,0.8809,4616.4,4616.3,0.3061]
[1758160900125,0.8809,4616.4,4616.3,0.5123]
[1758160900328,0.8809,4616.4,4616.3,0.3061]
[1758160900518,0.6157,4616.4,4616.2,0.3061]
[1758160900818,0.6609,4616.3,4616.2,0.3061]
[1758160901022,0.2652,4616.2,4616.1,0.7988]
[1758160901223,4.0887,4616.2,4616.1,0.7988]
[1758160901426,4.33347229,4616.2,4616.1,0.7988]
[1758160901620,5.60382805,4616.2,4616.1,0.7988]
[1758160902120,6.36091032,4616.2,4616.1,0.7988]
[1758160902324,6.57754033,4616.2,4616.1,0.7988]
[1758160902718,6.36091032,4616.2,4616.1,0.7988]
[1758160902926,6.36091032,4616.2,4615.9,0.1733]
[1758160903221,1.51416454,4616.0,4615.9,0.4794]
[1758160903430,1.73416454,4616.0,4615.9,0.4794]
[1758160903630,1.97875652,4616.0,4615.7,0.3061]
[1758160903932,0.75708227,4615.8,4615.7,0.3061]
[1758160904227,0.97708227,4615.8,4615.7,0.3061]
[1758160906236,1.73416454,4615.8,4615.7,0.3061]
[1758160906437,1.73416454,4615.8,4615.6,0.02]
[1758160906741,3.2078,4615.7,4615.6,0.3261]
[1758160907234,3.2078,4615.7,4615.5,0.1152]
[1758160907434,1.73416454,4615.6,4615.5,0.4213]
[1758160908236,1.73416454,4615.6,4615.5,0.3061]
[1758160909338,1.73416454,4615.6,4615.5,0.4213]
[1758160910735,0.75708227,4615.6,4615.5,0.6275]
[1758160911036,3.2078,4615.7,4615.6,0.7104]
[1758160911643,3.4278,4615.7,4615.6,0.7104]
[1758160912037,4.18488227,4615.7,4615.6,0.7104]
[1758160913043,3.96488227,4615.7,4615.6,0.7104]
[1758160913244,4.18488227,4615.7,4615.6,0.7104]
[1758160915140,3.2078,4615.7,4615.6,1.46748227]
[1758160915341,0.75708227,4616.4,4616.3,0.4043]
[1758160915547,0.75708227,4616.4,4616.3,0.7104]
[1758160915745,0.75708227,4617.8,4617.0,0.3214]
[1758160915746,3.2078,4617.3,4617.0,0.3214]
[1758160916045,0.22,4617.2,4617.1,0.3061]
[1758160916434,3.2078,4617.3,4617.1,0.3061]
[1758160916637,0.22,4617.2,4617.1,0.3061]
[1758160917045,5.95074454,4617.2,4616.2,3.2078]
[1758160917242,0.75708227,4616.3,4616.1,0.3061]
[1758160917546,0.97708227,4616.2,4616.1,0.3061]
[1758160917841,1.49056754,4616.2,4615.6,0.3061]
[1758160918039,0.75708227,4615.7,4615.6,0.5123]
[1758160918244,0.97708227,4615.7,4615.6,0.5123]
[1758160918950,0.97708227,4615.7,4615.6,0.7104]
[1758160919751,1.73416454,4615.7,4615.6,0.5123]
[1758160919947,0.22,4615.7,4615.6,0.3061]
[1758160920249,1.73416454,4615.7,4615.6,0.3061]
[1758160920546,3.2078,4615.8,4615.7,0.2892]
[1758160920744,4.18488227,4615.8,4615.7,0.7044]
[1758160921742,4.94196454,4615.8,4615.7,0.2892]
[1758160922349,4.18488227,4615.8,4615.7,0.2892]
[1758160923849,4.94196454,4615.8,4615.7,0.2892]
[1758160924045,4.94196454,4615.8,4615.5,0.4044]
[1758160924350,3.4278,4615.8,4615.5,0.1152]
[1758160924551,3.4278,4615.8,4615.6,0.2892]
[1758160924950,3.4278,4615.8,4615.5,0.1152]
[1758160925451,1.51416454,4615.6,4615.5,0.1152]
[1758160925753,1.73416454,4615.6,4615.5,0.1152]
[1758160925939,1.73416454,4615.6,4615.5,0.4141]
[1758160928549,2.24840228,4615.6,4615.5,0.4141]
[1758160931949,0.96917697,4615.6,4615.5,0.4141]
[1758160932153,2.48334151,4615.6,4615.5,0.6179]
[1758160932951,0.51423774,4615.6,4615.5,0.8178]
[1758160933152,3.2078,4616.3,4616.2,0.7026]
[1758160933355,3.96488227,4616.3,4616.2,0.7026]
[1758160933544,4.18488227,4616.3,4616.2,0.7026]
[1758160934253,4.71178241,4616.3,4616.2,0.2989]
[1758160934449,4.71178241,4616.3,4616.2,0.5027]
[1758160935654,4.71178241,4616.3,4616.2,0.7026]
[1758160935953,4.71178241,4616.3,4616.2,0.2989]
[1758160936158,4.71178241,4616.3,4616.0,0.4459]
[1758160936159,5.46886468,4616.3,4616.0,0.4459]
[1758160936354,0.52690014,4616.2,4616.0,0.0216]
[1758160936661,1.73305737,4616.1,4616.0,0.0216]
[1758160937257,2.49013964,4616.1,4616.0,0.0216]
[1758160937457,2.49013964,4616.1,4616.0,0.3205]
[1758160937661,1.73305737,4616.1,4616.0,0.4459]
[1758160938262,0.9759751,4616.1,4616.0,0.4459]
[1758160938462,1.73305737,4616.1,4616.0,0.4459]
[1758160938659,0.9759751,4616.1,4616.0,0.6497]
[1758160938858,1.50398241,4616.1,4616.0,0.8496]
[1758160939260,0.52690014,4616.1,4616.0,0.8496]
[1758160939466,0.22,4616.1,4616.0,0.8496]
[1758160939673,0.75708227,4616.2,4616.1,0.7026]
[1758160939964,0.97708227,4616.2,4616.1,0.7026]
[1758160940563,3.2078,4616.3,4616.2,0.2989]
[1758160940763,4.18488227,4616.3,4616.2,0.7026]
[1758160944866,3.96488227,4616.3,4616.2,0.7026]
[1758160945069,4.18488227,4616.3,4616.2,0.7026]
[1758160946469,3.96488227,4616.3,4616.2,0.7026]
[1758160946770,3.2078,4617.3,4617.2,0.5027]
[1758160947070,3.2078,4617.3,4616.5,0.1254]
[1758160947071,3.73434175,4617.3,4616.6,0.2989]
[1758160947273,0.52654175,4617.2,4617.1,0.5027]
[1758160947567,0.74654175,4617.2,4617.1,0.7026]
[1758160947967,1.50362402,4617.2,4617.1,0.5027]
[1758160949275,0.97708227,4617.2,4617.1,0.5027]
[1758160952970,0.75708227,4617.2,4617.1,0.7026]
[1758160953179,0.97708227,4617.2,4617.1,0.7026]
[1758160953880,1.1489728,4617.2,4617.1,0.7026]
[1758160955482,0.9289728,4617.2,4617.1,0.7026]
[1758160955676,1.1489728,4617.2,4617.1,0.7026]
[1758160956377,1.1489728,4617.2,4617.1,0.2989]
[1758160956782,0.9289728,4617.2,4617.1,0.2989]
[1758160956978,1.1489728,4617.2,4617.1,0.5047]
[1758160957987,1.1489728,4617.2,4617.1,0.2989]
[1758160958276,6.82122788,4617.2,4616.9,0.1732]
[1758160958475,0.75543665,4617.1,4616.3,0.2952]
[1758160958676,0.75543665,4617.1,4616.5,0.1154]
[1758160958677,4.1367728,4616.6,4616.5,0.1154]
[1758160958873,4.3567728,4616.6,4616.5,0.4106]
[1758160959183,4.88004856,4616.6,4616.5,0.4106]
[1758160961084,3.95107576,4616.6,4616.5,0.4106]
[1758160961379,4.88004856,4616.6,4616.5,0.4106]
[1758160962985,4.88050155,4616.6,4616.5,0.4106]
[1758160963291,3.73152875,4616.6,4616.5,0.8111]
[1758160963474,0.22,4616.6,4616.5,0.8111]
[1758160963678,3.2078,4617.2,4617.1,0.6957]
[1758160963979,3.95144535,4617.2,4617.1,0.6957]
[1758160965891,3.95144535,4617.2,4617.1,0.2952]
[1758160966989,3.95144535,4617.2,4617.1,0.501]
[1758160967683,3.95144535,4617.2,4617.1,0.2952]
[1758160968079,3.73144535,4617.2,4617.1,0.2952]
[1758160968285,3.95144535,4617.2,4617.1,0.2952]
[1758160969399,3.95144535,4617.2,4617.1,0.501]
[1758160970380,3.73144535,4617.2,4617.1,0.501]
[1758160970585,3.95144535,4617.2,4617.1,0.501]
[1758160970895,3.95144535,4617.2,4617.1,0.6957]
[1758160971192,4.88041815,4617.2,4617.1,0.6957]
[1758160971494,5.10537483,4617.2,4617.1,0.6957]
[1758160972195,0.52364535,4617.2,4617.1,0.6957]
[1758160972391,3.2078,4617.8,4617.1,4.6957]
[1758160972694,0.9289728,4618.1,4618.0,0.8111]
[1758160972996,1.67372598,4618.1,4618.0,0.8111]
[1758160977394,1.1489728,4618.1,4618.0,0.8111]
[1758160978891,3.2078,4618.8,4618.6,0.3007]
[1758160979091,3.2078,4618.8,4618.6,0.7157]
[1758160979092,1.89750986,4618.7,4618.6,0.7157]
[1758160979293,1.67750986,4618.7,4618.6,0.506]
[1758160979498,1.89750986,4618.7,4618.6,0.506]
[1758160979795,2.82648266,4618.7,4618.5,0.1223]
[1758160980098,0.74853706,4618.6,4618.5,0.1223]
[1758160981294,0.74853706,4618.6,4618.5,0.423]
[1758160981796,0.96853706,4618.6,4618.5,0.423]
[1758160982398,0.74853706,4618.6,4618.5,0.423]
[1758160982700,0.96853706,4618.6,4618.5,0.423]
[1758160982894,0.96824181,4618.6,4618.5,0.423]
[1758160983094,1.89721461,4618.6,4618.5,0.423]
[1758160983294,0.74824181,4618.6,4618.5,0.423]
[1758160983495,0.96824181,4618.6,4618.5,0.423]